lending/lending_fUSD_20241120
["ID","MTS","AMOUNT","RATE_DAILY","PERIOD"]
[342778416,1732140674708,-500.0,0.00055068,120]
[342778417,1732140674717,-500.0,0.00055068,120]
[342778418,1732140674727,-500.0,0.00055068,120]
[342778419,1732140674737,-500.0,0.00055068,120]
[342778420,1732140674747,-647.62,0.00055068,120]
[342778421,1732140674757,-500.0,0.00055068,120]
[342778422,1732140674766,-500.0,0.00055068,120]
[342778423,1732140674776,-2489.82,0.00055068,120]
[342778424,1732140674785,-2045.61,0.00055068,120]
[342778425,1732140674795,-501.18757053,0.00055068,120]
[342778426,1732140674805,-500.0,0.00055068,120]
[342778427,1732140674814,-500.0,0.00055068,120]
[342778428,1732140674823,-500.0,0.00055068,120]
[342778429,1732140674833,-500.0,0.00055068,120]
[342778430,1732140674843,-500.0,0.00055068,120]
[342778431,1732140674853,-151.0,0.00055068,120]
[342778432,1732140674863,-500.0,0.00055068,120]
[342778433,1732140674873,-591.3708309,0.00055068,120]
[342778434,1732140674884,-500.0,0.00055068,120]
[342778435,1732140674893,-500.0,0.00055068,120]
[342778436,1732140674903,-500.0,0.00055068,120]
[342778437,1732140674912,-721.64,0.00055068,120]
[342778438,1732140674922,-972.27,0.00055068,120]
[342778439,1732140674932,-1208.94,0.00055068,120]
[342778440,1732140674941,-1591.78,0.00055068,120]
[342778441,1732140674951,-1887.72,0.00055068,120]
[342778442,1732140674962,-151.0,0.00055068,120]
[342778443,1732140674971,-850.0,0.00055068,120]
[342778444,1732140674981,-500.0,0.00055068,120]
[342778445,1732140674991,-852.01,0.00055068,120]
[342778446,1732140675000,-500.0,0.00055068,120]
[342778447,1732140675010,-872.84,0.00055068,120]
[342778448,1732140675020,-500.0,0.00055068,120]
[342778449,1732140675030,-151.0,0.00055068,120]
[342778450,1732140675039,-500.0,0.00055068,120]
[342778451,1732140675050,-865.82,0.00055068,120]
[342778452,1732140675060,-461.26781959,0.00055068,120]
[342778453,1732140675071,-500.0,0.00055068,120]
[342778454,1732140675080,-846.36,0.00055068,120]
[342778455,1732140675091,-151.0,0.00055068,120]
[342778456,1732140675101,-500.0,0.00055068,120]
[342778457,1732140675111,-500.0,0.00055068,120]
[342778458,1732140675123,-1191.88,0.00055068,120]
[342778459,1732140675134,-500.0,0.00055068,120]
[342778460,1732140675143,-500.0,0.00055068,120]
[342778461,1732140675152,-500.0,0.00055068,120]
[342778462,1732140675162,-1792.7,0.00055068,120]
[342778463,1732140675173,-500.0,0.00055068,120]
[342778464,1732140675182,-500.0,0.00055068,120]
[342778465,1732140675193,-5749.44,0.00055068,120]
[342778466,1732140675205,-500.0,0.00055068,120]
[342778467,1732140675214,-500.0,0.00055068,120]
[342778468,1732140675223,-500.0,0.00055068,120]
[342778469,1732140675233,-500.0,0.00055068,120]
[342778470,1732140675242,-151.0,0.00055068,120]
[342778471,1732140675252,-500.0,0.00055068,120]
[342778472,1732140675262,-500.0,0.00055068,120]
[342778473,1732140675272,-500.0,0.00055068,120]
[342778474,1732140675282,-571.98,0.00055068,120]
[342778475,1732140675292,-706.66,0.00055068,120]
[342778476,1732140675302,-500.0,0.00055068,120]
[342778477,1732140675312,-151.0,0.00055068,120]
[342778478,1732140675322,-500.0,0.00055068,120]
[342778479,1732140675332,-669.11,0.00055068,120]
[342778480,1732140675342,-710.75,0.00055068,120]
[342778481,1732140675353,-500.0,0.00055068,120]
[342778482,1732140675362,-688.41,0.00055068,120]
[342778483,1732140675372,-600.76,0.00055068,120]
[342778484,1732140675384,-2203.93,0.00055068,120]
[342778485,1732140675394,-1092.67,0.00055068,120]
[342778486,1732140675405,-723.74,0.00055068,120]
[342778487,1732140675416,-500.0,0.00055068,120]
[342778488,1732140675426,-962.75,0.00055068,120]
[342778489,1732140675437,-643.7796523,0.00055068,120]
[342778490,1732140675447,-500.0,0.00055068,120]
[342778491,1732140675457,-500.0,0.00055068,120]
[342778492,1732140675468,-151.0,0.00055068,120]
[342778493,1732140675478,-500.0,0.00055068,120]
[342778494,1732140675488,-988.55,0.00055068,120]
[342778495,1732140675499,-500.0,0.00055068,120]
[342778496,1732140675509,-151.0,0.00055068,120]
[342778497,1732140675519,-2304.78,0.00055068,120]
[342778498,1732140675529,-500.0,0.00055068,120]
[342778499,1732140675539,-500.0,0.00055068,120]
[342778500,1732140675549,-843.9,0.00055068,120]
[342778501,1732140675559,-500.0,0.00055068,120]
[342778502,1732140675569,-690.54,0.00055068,120]
[342778503,1732140675579,-500.0,0.00055068,120]
[342778504,1732140675590,-500.0,0.00055068,120]
[342778505,1732140675600,-1647.87,0.00055068,120]
[342778506,1732140675610,-850.55,0.00055068,120]
[342778507,1732140675621,-809.67,0.00055068,120]
[342778508,1732140675630,-500.0,0.00055068,120]
[342778509,1732140675643,-683.97,0.00055068,120]
[342778510,1732140675653,-500.0,0.00055068,120]
[342778511,1732140675669,-834.1,0.00055068,120]
[342778512,1732140675680,-914.77,0.00055068,120]
[342778513,1732140675690,-151.0,0.00055068,120]
[342778514,1732140675701,-1141.14,0.00055068,120]
[342778515,1732140675713,-500.0,0.00055068,120]
[342778516,1732140675723,-624.59,0.00055068,120]
[342778517,1732140675734,-500.0,0.00055068,120]
[342778518,1732140675745,-500.0,0.00055068,120]
[342778519,1732140675757,-1109.8,0.00055068,120]
[342778520,1732140675768,-500.0,0.00055068,120]
[342778521,1732140675779,-500.0,0.00055068,120]
[342778522,1732140675791,-500.0,0.00055068,120]
[342778523,1732140675802,-1752.52,0.00055068,120]
[342778524,1732140675814,-1096.46,0.00055068,120]
[342778525,1732140675824,-500.0,0.00055068,120]
[342778526,1732140675835,-950.07,0.00055068,120]
[342778527,1732140675846,-500.0,0.00055068,120]
[342778528,1732140675856,-500.0,0.00055068,120]
[342778529,1732140675868,-151.0,0.00055068,120]
[342778530,1732140675879,-2142.92,0.00055068,120]
[342778531,1732140675894,-1422.3,0.00055068,120]
[342778532,1732140675910,-500.0,0.00055068,120]
[342778533,1732140675921,-829.0,0.00055068,120]
[342778534,1732140675931,-575.3,0.00055068,120]
[342778535,1732140675942,-500.0,0.00055068,120]
[342778536,1732140675953,-500.0,0.00055068,120]
[342778537,1732140675964,-737.82,0.00055068,120]
[342778538,1732140675975,-500.0,0.00055068,120]
[342778539,1732140675985,-500.14044055,0.00055068,120]
[342778540,1732140675996,-666.21,0.00055068,120]
[342778541,1732140676006,-1778.99,0.00055068,120]
[342778542,1732140676016,-151.0,0.00055068,120]
[342778543,1732140676027,-1715.56,0.00055068,120]
[342778544,1732140676037,-500.0,0.00055068,120]
[342778545,1732140676047,-500.26657007,0.00055068,120]
[342778546,1732140676058,-1062.65,0.00055068,120]
[342778547,1732140676068,-500.0,0.00055068,120]
[342778548,1732140676078,-500.0,0.00055068,120]
[342778549,1732140676089,-500.0,0.00055068,120]
[342778550,1732140676099,-2346.15,0.00055068,120]
[342778551,1732140676109,-151.0,0.00055068,120]
[342778552,1732140676120,-500.0,0.00055068,120]
[342778553,1732140676135,-151.0,0.00055068,120]
[342778554,1732140676146,-949.47,0.00055068,120]
[342778555,1732140676155,-500.0,0.00055068,120]
[342778556,1732140676166,-635.59464322,0.00055068,120]
[342778557,1732140676176,-888.32,0.00055068,120]
[342778558,1732140676186,-1351.22,0.00055068,120]
[342778559,1732140676197,-500.0,0.00055068,120]
[342778560,1732140676207,-500.0,0.00055068,120]
[342778561,1732140676217,-880.81,0.00055068,120]
[342778562,1732140676227,-500.0,0.00055068,120]
[342778563,1732140676238,-642.33,0.00055068,120]
[342778564,1732140676248,-500.0,0.00055068,120]
[342778565,1732140676258,-597.52,0.00055068,120]
[342778566,1732140676571,-151.0,0.00055068,120]
[342778567,1732140676589,-6141.54,0.00055068,120]
[342778568,1732140676599,-500.0,0.00055068,120]
[342778569,1732140676609,-151.0,0.00055068,120]
[342778570,1732140676618,-532.20241557,0.00055068,120]
[342778571,1732140676628,-500.0,0.00055068,120]
[342778572,1732140676639,-500.0,0.00055068,120]
[342778573,1732140676648,-501.48089051,0.00055068,120]
[342778574,1732140676657,-1511.19,0.00055068,120]
[342778575,1732140676667,-151.0,0.00055068,120]
[342778576,1732140676676,-1086.04,0.00055068,120]
[342778577,1732140676686,-500.0,0.00055068,120]
[342778578,1732140676696,-668.34,0.00055068,120]
[342778579,1732140676706,-1351.32,0.00055068,120]
[342778580,1732140676715,-500.0,0.00055068,120]
[342778581,1732140676725,-1492.04,0.00055068,120]
[342778582,1732140676735,-926.38,0.00055068,120]
[342778583,1732140676744,-500.0,0.00055068,120]
[342778584,1732140676754,-695.0,0.00055068,120]
[342778585,1732140676763,-5287.99,0.00055068,120]
[342778586,1732140676773,-500.0,0.00055068,120]
[342778587,1732140676782,-500.0,0.00055068,120]
[342778588,1732140676792,-500.0,0.00055068,120]
[342778589,1732140676802,-500.0,0.00055068,120]
[342778590,1732140676812,-1482.2,0.00055068,120]
[342778591,1732140676821,-500.0,0.00055068,120]
[342778592,1732140676830,-845.23,0.00055068,120]
[342778593,1732140676840,-500.0,0.00055068,120]
[342778594,1732140676850,-262.56804681,0.00055068,120]
[342778595,1732140676860,-500.0,0.00055068,120]
[342778596,1732140676869,-500.0,0.00055068,120]
[342778597,1732140676879,-151.0,0.00055068,120]
[342778598,1732140676890,-500.0,0.00055068,120]
[342778599,1732140676900,-500.0,0.00055068,120]
[342778600,1732140676910,-1260.12,0.00055068,120]
[342778601,1732140676920,-500.0,0.00055068,120]
[342778602,1732140676929,-505.0357748,0.00055068,120]
[342778603,1732140676938,-500.0,0.00055068,120]
[342778604,1732140676949,-1283.29,0.00055068,120]
[342778605,1732140676959,-500.0,0.00055068,120]
[342778606,1732140676969,-500.0,0.00055068,120]
[342778607,1732140676978,-1393.35,0.00055068,120]
[342778608,1732140676988,-500.0,0.00055068,120]
[342778609,1732140676997,-500.0,0.00055068,120]
[342778610,1732140677007,-500.0,0.00055068,120]
[342778611,1732140677016,-500.0,0.00055068,120]
[342778612,1732140677026,-500.0,0.00055068,120]
[342778613,1732140677036,-500.0,0.00055068,120]
[342778614,1732140677045,-2642.2,0.00055068,120]
[342778615,1732140677055,-151.0,0.00055068,120]
[342778616,1732140677065,-1536.4,0.00055068,120]
[342778617,1732140677075,-3168.55,0.00055068,120]
[342778618,1732140677085,-500.0,0.00055068,120]
[342778619,1732140677095,-500.0,0.00055068,120]
[342778620,1732140677105,-500.0,0.00055068,120]
[342778621,1732140677114,-827.35,0.00055068,120]
[342778622,1732140677128,-500.0,0.00055068,120]
[342778623,1732140677139,-1702.89,0.00055068,120]
[342778624,1732140677150,-500.0,0.00055068,120]
[342778625,1732140677160,-151.0,0.00055068,120]
[342778626,1732140677170,-500.0,0.00055068,120]
[342778627,1732140677181,-500.0,0.00055068,120]
[342778628,1732140677191,-151.0,0.00055068,120]
[342778629,1732140677201,-641.78,0.00055068,120]
[342778630,1732140677211,-500.0,0.00055068,120]
[342778631,1732140677221,-1344.44,0.00055068,120]
[342778632,1732140677231,-1090.73,0.00055068,120]
[342778633,1732140677240,-500.0,0.00055068,120]
[342778634,1732140677251,-500.0,0.00055068,120]
[342778635,1732140677260,-52850.67,0.00055068,120]
[342778636,1732140677270,-500.0,0.00055068,120]
[342778637,1732140677280,-500.0,0.00055068,120]
[342778638,1732140677289,-1753.45,0.00055068,120]
[342778639,1732140677299,-1006.78,0.00055068,120]
[342778640,1732140677308,-500.0,0.00055068,120]
[342778641,1732140677318,-1064.88,0.00055068,120]
[342778642,1732140677328,-500.0,0.00055068,120]
[342778643,1732140677338,-500.0,0.00055068,120]
[342778644,1732140677347,-622.97,0.00055068,120]
[342778645,1732140677357,-500.0,0.00055068,120]
[342778646,1732140677366,-3042.17,0.00055068,120]
[342778647,1732140677375,-500.0,0.00055068,120]
[342778648,1732140677386,-1736.39,0.00055068,120]
[342778649,1732140677395,-2339.16,0.00055068,120]
[342778650,1732140677405,-500.0,0.00055068,120]
[342778651,1732140677415,-500.0,0.00055068,120]
[342778652,1732140677424,-700.57,0.00055068,120]
[342778653,1732140677434,-585.35,0.00055068,120]
[342778654,1732140677444,-500.0,0.00055068,120]
[342778655,1732140677454,-523.5,0.00055068,120]
[342778656,1732140677463,-1522.74,0.00055068,120]
[342778657,1732140677473,-500.0,0.00055068,120]
[342778658,1732140677483,-2627.11,0.00055068,120]
[342778659,1732140677493,-1766.0,0.00055068,120]
[342778660,1732140677503,-500.0,0.00055068,120]
[342778661,1732140677518,-693.99,0.00055068,120]
[342778662,1732140677538,-5335.95,0.00055068,120]
[342778663,1732140677548,-500.0,0.00055068,120]
[342778664,1732140677559,-973.18,0.00055068,120]
[342778665,1732140677568,-500.0,0.00055068,120]
[342778666,1732140677578,-500.0,0.00055068,120]
[342778667,1732140677588,-500.0,0.00055068,120]
[342778668,1732140677598,-151.0,0.00055068,120]
[342778669,1732140677607,-500.0,0.00055068,120]
[342778670,1732140677618,-500.0,0.00055068,120]
[342778671,1732140677627,-224.11954345,0.00055068,120]
[342778672,1732140677639,-778.26,0.00055068,120]
[342778673,1732140677649,-500.0,0.00055068,120]
[342778674,1732140677660,-500.0,0.00055068,120]
[342778675,1732140677670,-500.0,0.00055068,120]
[342778676,1732140677680,-500.0,0.00055068,120]
[342778677,1732140677690,-561.95,0.00055068,120]
[342778678,1732140677700,-868.31,0.00055068,120]
[342778679,1732140677711,-1384.57,0.00055068,120]
[342778680,1732140677720,-400.36,0.00055068,7]
[342778681,1732140677730,-1122.37,0.00055068,120]
[342778682,1732140677739,-620.69,0.00055068,120]
[342778683,1732140677749,-500.0,0.00055068,120]
[342778684,1732140677759,-1223.49,0.00055068,120]
[342778685,1732140677773,-500.0,0.00055068,120]
[342778686,1732140677782,-151.0,0.00055068,120]
[342778687,1732140677792,-500.0,0.00055068,120]
[342778688,1732140677802,-1516.54,0.00055068,120]
[342778689,1732140677811,-1041.7,0.00055068,120]
[342778690,1732140677821,-4704.32,0.00055068,120]
[342778691,1732140677830,-556.584,0.00055068,120]
[342778692,1732140677839,-413.71881286,0.00055068,120]
[342778693,1732140677849,-1309.89,0.00055068,120]
[342778694,1732140677858,-525.76,0.00055068,120]
[342778695,1732140677867,-500.0,0.00055068,120]
[342778696,1732140677877,-500.0,0.00055068,120]
[342778697,1732140677888,-500.0,0.00055068,120]
[342778698,1732140677897,-556.584,0.00055068,120]
[342778699,1732140677906,-2257.06,0.00055068,120]
[342778700,1732140677916,-2012.7,0.00055068,120]
[342778701,1732140677926,-151.0,0.00055068,120]
[342778702,1732140677935,-500.0,0.00055068,120]
[342778703,1732140677945,-500.0,0.00055068,120]
[342778704,1732140677955,-656.82,0.00055068,120]
[342778705,1732140677964,-1047.88,0.00055068,120]
[342778706,1732140677974,-151.0,0.00055068,120]
[342778707,1732140677984,-499.53832526,0.00055068,120]
[342778708,1732140677994,-500.0,0.00055068,120]
[342778709,1732140678003,-1177.9,0.00055068,120]
[342778710,1732140678013,-500.0,0.00055068,120]
[342778711,1732140678022,-500.0,0.00055068,120]
[342778712,1732140678032,-1603.42,0.00055068,120]
[342778713,1732140678042,-500.0,0.00055068,120]
[342778714,1732140678052,-500.0,0.00055068,120]
[342778715,1732140678062,-408.764038,0.00055068,120]
[342778716,1732140678072,-1567.54,0.00055068,120]
[342778717,1732140678082,-186.44223764,0.00055068,120]
[342778718,1732140678091,-500.0,0.00055068,120]
[342778719,1732140678101,-834.44,0.00055068,120]
[342778720,1732140678110,-500.0,0.00055068,120]
[342778721,1732140678121,-2004.44,0.00055068,120]
[342778722,1732140678136,-500.0,0.00055068,120]
[342778723,1732140678146,-500.0,0.00055068,120]
[342778724,1732140678156,-1050.71,0.00055068,120]
[342778725,1732140678167,-500.0,0.00055068,120]
[342778726,1732140678177,-535.37645115,0.00055068,120]
[342778727,1732140678186,-500.0,0.00055068,120]
[342778728,1732140678196,-1803.54,0.00055068,120]
[342778729,1732140678207,-502.1202966,0.00055068,120]
[342778730,1732140678216,-650.66,0.00055068,120]
[342778731,1732140678226,-516.91,0.00055068,120]
[342778732,1732140678235,-500.0,0.00055068,120]
[342778733,1732140678245,-500.0,0.00055068,120]
[342778734,1732140678255,-500.0,0.00055068,120]
[342778735,1732140678264,-500.0,0.00055068,120]
[342778736,1732140678274,-500.0,0.00055068,120]
[342778737,1732140678284,-500.0,0.00055068,120]
[342778738,1732140678294,-950.3,0.00055068,120]
[342778739,1732140678304,-151.0,0.00055068,120]
[342778740,1732140678313,-4162.19,0.00055068,120]
[342778741,1732140678323,-500.0,0.00055068,120]
[342778742,1732140678333,-729.88,0.00055068,120]
[342778743,1732140678344,-500.0,0.00055068,120]
[342778744,1732140678353,-1437.64,0.00055068,120]
[342778745,1732140678362,-500.0,0.00055068,120]
[342778746,1732140678373,-951.19,0.00055068,120]
[342778747,1732140678382,-1325.24,0.00055068,120]
[342778748,1732140678393,-500.0,0.00055068,120]
[342778749,1732140678403,-739.2,0.00055068,120]
[342778750,1732140678413,-500.0,0.00055068,120]
[342778751,1732140678423,-711.16,0.00055068,120]
[342778752,1732140678433,-151.0,0.00055068,120]
[342778753,1732140678443,-35063.23,0.00055068,120]
[342778754,1732140678453,-500.0,0.00055068,120]
[342778755,1732140678463,-758.38,0.00055068,120]
[342778756,1732140678472,-500.0,0.00055068,120]
[342778757,1732140678482,-500.0,0.00055068,120]
[342778758,1732140678492,-500.0,0.00055068,120]
[342778759,1732140678502,-1066.88,0.00055068,120]
[342778760,1732140678511,-500.0,0.00055068,120]
[342778761,1732140678521,-604.09,0.00055068,120]
[342778762,1732140678530,-500.0,0.00055068,120]
[342778763,1732140678540,-500.0,0.00055068,120]
[342778764,1732140678549,-516.9,0.00055068,120]
[342778765,1732140678559,-1309.97,0.00055068,120]
[342778766,1732140678569,-1271.19,0.00055068,120]
[342778767,1732140678578,-1776.53,0.00055068,120]
[342778768,1732140678588,-1055.78,0.00055068,120]
[342778769,1732140678597,-500.68300698,0.00055068,120]
[342778770,1732140678607,-2027.31,0.00055068,120]
[342778771,1732140678616,-359.68987698,0.00055068,120]
[342778772,1732140678626,-2957.46,0.00055068,120]
[342778773,1732140678636,-565.96,0.00055068,120]
[342778774,1732140678645,-3450.26,0.00055068,120]
[342778775,1732140678655,-1015.77,0.00055068,120]
[342778776,1732140678665,-500.0,0.00055068,120]
[342778777,1732140678675,-500.0,0.00055068,120]
[342778778,1732140678684,-5653.29,0.00055068,120]
[342778779,1732140678693,-2531.55,0.00055068,120]
[342778780,1732140678703,-1396.17,0.00055068,120]
[342778781,1732140678712,-578.1,0.00055068,120]
[342778782,1732140678723,-699.76,0.00055068,120]
[342778783,1732140678732,-397.06069866,0.00055068,120]
[342778784,1732140678741,-1045.04,0.00055068,120]
[342778785,1732140678751,-185.406492,0.00055068,120]
[342778786,1732140678760,-1833.67,0.00055068,120]
[342778787,1732140678769,-500.0,0.00055068,120]
[342778788,1732140678778,-500.0,0.00055068,120]
[342778789,1732140678788,-500.0,0.00055068,120]
[342778790,1732140678797,-671.36,0.00055068,120]
[342778791,1732140678807,-500.0,0.00055068,120]
[342778792,1732140678816,-185.406492,0.00055068,120]
[342778793,1732140678825,-500.0,0.00055068,120]
[342778794,1732140678835,-501.0080465,0.00055068,120]
[342778795,1732140678844,-618.56,0.00055068,120]
[342778796,1732140678853,-1250.43,0.00055068,120]
[342778797,1732140678863,-1529.97,0.00055068,120]
[342778798,1732140678872,-916.63,0.00055068,120]
[342778799,1732140678881,-7124.81,0.00055068,120]
[342778800,1732140678892,-1979.2,0.00055068,120]
[342778801,1732140678901,-1449.91,0.00055068,120]
[342778802,1732140678911,-1114.64,0.00055068,120]
[342778803,1732140679024,-151.0,0.00055068,120]
[342778804,1732140679035,-210.788954,0.00055068,120]
[342778805,1732140679044,-500.0,0.00055068,120]
[342778806,1732140679053,-611.06849277,0.00055068,120]
[342778807,1732140679062,-500.0,0.00055068,120]
[342778808,1732140679071,-1049.5,0.00055068,120]
[342778809,1732140679080,-500.0,0.00055068,120]
[342778810,1732140679089,-500.0,0.00055068,120]
[342778811,1732140679098,-210.788954,0.00055068,120]
[342778812,1732140679107,-500.0,0.00055068,120]
[342778813,1732140679116,-500.0,0.00055068,120]
[342778814,1732140679128,-2536.25,0.00055068,120]
[342778815,1732140679139,-3951.61,0.00055068,120]
[342778816,1732140679148,-2472.73,0.00055068,120]
[342778817,1732140679156,-500.0,0.00055068,120]
[342778818,1732140679166,-500.0,0.00055068,120]
[342778819,1732140679175,-500.0,0.00055068,120]
[342778820,1732140679184,-500.0,0.00055068,120]
[342778821,1732140679194,-786.55,0.00055068,120]
[342778822,1732140679204,-4870.15,0.00055068,120]
[342778823,1732140679214,-883.86,0.00055068,120]
[342778824,1732140679223,-500.0,0.00055068,120]
[342778825,1732140679232,-4533.42,0.00055068,120]
[342778826,1732140679241,-2000.0,0.00055068,30]
[342778827,1732140679250,-500.0,0.00055068,120]
[342778828,1732140679259,-500.0,0.00055068,120]
[342778829,1732140679268,-500.0,0.00055068,120]
[342778830,1732140679278,-636.47,0.00055068,120]
[342778831,1732140679286,-851.5,0.00055068,120]
[342778832,1732140679295,-1816.21,0.00055068,120]
[342778833,1732140679304,-500.0,0.00055068,120]
[342778834,1732140679313,-616.92,0.00055068,120]
[342778835,1732140679322,-1014.23,0.00055068,120]
[342778836,1732140679331,-6811.17,0.00055068,120]
[342778837,1732140679340,-500.0,0.00055068,120]
[342778838,1732140679349,-500.0,0.00055068,120]
[342778839,1732140679358,-500.0,0.00055068,120]
[342778840,1732140679367,-500.0,0.00055068,120]
[342778841,1732140679376,-500.0,0.00055068,120]
[342778842,1732140679386,-1332.89,0.00055068,120]
[342778843,1732140679395,-753.95,0.00055068,120]
[342778844,1732140679405,-10722.81,0.00055068,120]
[342778845,1732140679415,-500.0,0.00055068,120]
[342778846,1732140679423,-500.0,0.00055068,120]
[342778847,1732140679434,-1359.85,0.00055068,120]
[342778848,1732140679443,-2324.44,0.00055068,120]
[342778849,1732140679452,-500.0,0.00055068,120]
[342778850,1732140679462,-535.04,0.00055068,120]
[342778851,1732140679471,-4406.16,0.00055068,120]
[342778852,1732140679480,-500.0,0.00055068,120]
[342778853,1732140679490,-500.0,0.00055068,120]
[342778854,1732140679500,-1128.91,0.00055068,120]
[342778855,1732140679510,-500.0,0.00055068,120]
[342778856,1732140679519,-665.96,0.00055068,120]
[342778857,1732140679529,-500.0,0.00055068,120]
[342778858,1732140679538,-980.99,0.00055068,120]
[342778859,1732140679548,-500.0,0.00055068,120]
[342778860,1732140679557,-580.64,0.00055068,120]
[342778861,1732140679567,-892.8,0.00055068,120]
[342778862,1732140679576,-500.0,0.00055068,120]
[342778863,1732140679586,-152.16025562,0.00055068,120]
[342778864,1732140679595,-1436.75,0.00055068,120]
[342778865,1732140679604,-778.22,0.00055068,120]
[342778866,1732140679613,-558.99,0.00055068,120]
[342778867,1732140679622,-1153.44,0.00055068,7]
[342778868,1732140679631,-500.0,0.00055068,120]
[342778869,1732140679642,-500.0,0.00055068,120]
[342778870,1732140679651,-2548.81,0.00055068,120]
[342778871,1732140679661,-500.52181801,0.00055068,120]
[342778872,1732140679670,-3675.23,0.00055068,120]
[342778873,1732140679681,-500.0,0.00055068,120]
[342778874,1732140679692,-500.0,0.00055068,120]
[342778875,1732140679703,-500.0,0.00055068,120]
[342778876,1732140679713,-500.0,0.00055068,120]
[342778877,1732140679723,-500.0,0.00055068,120]
[342778878,1732140679733,-2249.83,0.00055068,120]
[342778879,1732140679744,-3167.44,0.00055068,120]
[342778880,1732140679753,-500.0,0.00055068,120]
[342778881,1732140679761,-500.0,0.00055068,120]
[342778882,1732140679770,-500.0,0.00055068,120]
[342778883,1732140679779,-11179.92,0.00055068,21]
[342778884,1732140679788,-500.0,0.00055068,120]
[342778885,1732140679798,-500.0,0.00055068,120]
[342778886,1732140679806,-500.0,0.00055068,120]
[342778887,1732140679815,-859.5,0.00055068,120]
[342778888,1732140679825,-500.0,0.00055068,120]
[342778889,1732140679834,-3662.75,0.00055068,120]
[342778890,1732140679843,-922.45,0.00055068,120]
[342778891,1732140679852,-575.78374163,0.00055068,120]
[342778892,1732140679862,-500.0,0.00055068,120]
[342778893,1732140679871,-231.238367,0.00055068,120]
[342778894,1732140679880,-500.0,0.00055068,120]
[342778895,1732140679893,-500.0,0.00055068,120]
[342778896,1732140679902,-1994.35,0.00055068,120]
[342778897,1732140679911,-500.0,0.00055068,120]
[342778898,1732140679919,-500.0,0.00055068,120]
[342778899,1732140679928,-66449.02,0.00055068,5]
[342778900,1732140679937,-500.0,0.00055068,120]
[342778901,1732140679946,-1162.72,0.00055068,120]
[342778902,1732140679955,-1363.9,0.00055068,120]
[342778903,1732140679964,-231.238367,0.00055068,120]
[342778904,1732140679973,-1114.06,0.00055068,120]
[342778905,1732140679982,-1815.23,0.00055068,120]
[342778906,1732140679991,-500.0,0.00055068,120]
[342778907,1732140679999,-1159.58,0.00055068,120]
[342778908,1732140680008,-500.0,0.00055068,120]
[342778909,1732140680017,-500.0,0.00055068,120]
[342778910,1732140680026,-500.0,0.00055068,120]
[342778911,1732140680035,-2826.01,0.00055068,120]
[342778912,1732140680043,-500.0,0.00055068,120]
[342778913,1732140680052,-6111.41,0.00055068,120]
[342778914,1732140680061,-500.0,0.00055068,120]
[342778915,1732140680071,-500.0,0.00055068,120]